fUSD/lending_fUSD_20250610
["ID","MTS","AMOUNT","RATE_DAILY","PERIOD"]
[365304096,1749589653022,-480.0,0.00016438,2]
[365304097,1749589653044,-464.46,0.00016438,2]
[365304098,1749589653068,-480.0,0.00016438,2]
[365304099,1749589653091,-480.0,0.00016438,2]
[365304100,1749589653114,-480.0,0.00016438,2]
[365304101,1749589653137,-480.0,0.00016438,2]
[365304102,1749589653160,-247.60580351,0.00016438,2]
[365304103,1749589653183,-480.0,0.00016438,2]
[365304104,1749589653209,-490.0,0.00016438,2]
[365304105,1749589653232,-490.0,0.00016438,2]
[365304106,1749589653255,-480.0,0.00016438,2]
[365304107,1749589653278,-480.0,0.00016438,2]
[365304108,1749589653303,-490.0,0.00016438,2]
[365304109,1749589653332,-490.0,0.00016438,2]
[365304110,1749589653356,-480.0,0.00016438,2]
[365304111,1749589653378,-480.0,0.00016438,2]
[365304112,1749589653399,-106.94880191,0.00016438,2]
[365304113,1749589714376,505.0,0.00024658,120]
[365304121,1749589831420,-300.0,0.00016437,2]
[365304122,1749589831430,-1200.0,0.00016437,2]
[365304123,1749589831439,-240.47180988,0.00016438,2]
[365304124,1749589831449,-304.53761302,0.00016438,2]
[365304125,1749589831459,-360.0,0.00016438,2]
[365304126,1749589831468,-480.0,0.00016438,2]
[365304127,1749589831477,-204.1,0.00016438,2]
[365304128,1749589831486,-480.0,0.00016438,2]
[365304129,1749589831496,-553.76,0.00016438,2]
[365304130,1749589831505,-480.0,0.00016438,2]
[365304131,1749589831514,-480.0,0.00016438,2]
[365304132,1749589831524,-490.0,0.00016438,2]
[365304133,1749589831533,-480.0,0.00016438,2]
[365304134,1749589831542,-490.0,0.00016438,2]
[365304135,1749589831551,-227.2642045,0.00016438,2]
[365304136,1749589831560,-480.0,0.00016438,2]
[365304137,1749589831570,-480.0,0.00016438,2]
[365304138,1749589831579,-480.0,0.00016438,2]
[365304139,1749589831589,-638.62,0.00016438,2]
[365304140,1749589831599,-480.0,0.00016438,2]
[365304141,1749589831610,-480.0,0.00016438,2]
[365304142,1749589831619,-490.0,0.00016438,2]
[365304143,1749589831629,-480.0,0.00016438,2]
[365304144,1749589831640,-490.0,0.00016438,2]
[365304145,1749589831649,-490.0,0.00016438,2]
[365304146,1749589831659,-623.16,0.00016438,2]
[365304147,1749589831668,-490.0,0.00016438,2]
[365304148,1749589831677,-480.0,0.00016438,2]
[365304149,1749589831687,-490.0,0.00016438,2]
[365304150,1749589831696,-1707.31,0.00016438,2]
[365304151,1749589831706,-480.0,0.00016438,2]
[365304152,1749589831715,-490.0,0.00016438,2]
[365304153,1749589831724,-480.0,0.00016438,2]
[365304154,1749589831735,-369.31777838,0.00016438,2]
[365304155,1749589831746,-490.0,0.00016438,2]
[365304156,1749589831757,-490.0,0.00016438,2]
[365304158,1749589831767,-490.0,0.00016438,2]
[365304160,1749589831776,-480.0,0.00016438,2]
[365304162,1749589831786,-490.0,0.00016438,2]
[365304164,1749589831796,-490.0,0.00016438,2]
[365304166,1749589831805,-490.0,0.00016438,2]
[365304168,1749589831814,-473.00511096,0.00016438,2]
[365304169,1749589831825,-490.0,0.00016438,2]
[365304170,1749589831834,-480.0,0.00016438,2]
[365304171,1749589831846,-480.0,0.00016438,2]
[365304172,1749589831855,-480.0,0.00016438,2]
[365304173,1749589831865,-500.0,0.000165,2]
[365304175,1749589831874,-500.0,0.000165,2]
[365304177,1749589831883,-500.84438394,0.000165,2]
[365304179,1749589831893,-178.39680957,0.000165,2]
[365304181,1749589831902,-500.0,0.0001654,2]
[365304183,1749589831912,-500.0,0.00016567,2]
[365304185,1749589831921,-480.0,0.00016602,2]
[365304187,1749589831930,-564.94,0.00016602,2]
[365304189,1749589831940,-304.95,0.00016602,2]
[365304191,1749589831949,-490.0,0.00016602,2]
[365304193,1749589831958,-490.0,0.00016602,2]
[365304195,1749589831968,-535.59,0.00016602,2]
[365304197,1749589831977,-490.0,0.00016602,2]
[365304199,1749589831986,-1707.31,0.00016602,2]
[365304201,1749589831995,-480.0,0.00016602,2]
[365304203,1749589832004,-490.0,0.00016602,2]
[365304205,1749589832013,-490.0,0.00016602,2]
[365304207,1749589832022,-490.0,0.00016602,2]
[365304209,1749589832031,-490.0,0.00016602,2]
[365304211,1749589832040,-636.47,0.00016767,2]
[365304213,1749589832049,-490.0,0.00016767,2]
[365304215,1749589832058,-490.0,0.00016767,2]
[365304217,1749589832067,-1707.31,0.00016767,2]
[365304219,1749589832076,-576.36,0.00016767,2]
[365304221,1749589832085,-163.3,0.00016767,2]
[365304222,1749589832095,-159.66,0.00016767,2]
[365304224,1749589832104,-490.0,0.00016767,2]
[365304225,1749589832114,-490.0,0.00016931,2]
[365304227,1749589832123,-490.0,0.00016931,2]
[365304229,1749589832132,-1707.31,0.00016931,2]
[365304231,1749589832141,-179.12,0.00016931,2]
[365304233,1749589832150,-201.0,0.00017076,2]
[365304235,1749589832160,-490.0,0.00017095,2]
[365304237,1749589832169,-639.18000001,0.00017095,2]
[365304239,1749589832178,-1707.31,0.00017095,2]
[365304241,1749589832187,-490.0,0.0001726,2]
[365304243,1749589832197,-1707.31,0.0001726,2]
[365304245,1749589832206,-490.0,0.00017424,2]
[365304247,1749589832215,-1707.31,0.00017424,2]
[365304249,1749589832224,-200.0,0.00017528,2]
[365304251,1749589832234,-490.0,0.00017589,2]
[365304253,1749589832243,-1707.31,0.00017589,2]
[365304255,1749589832253,-150.0,0.00017648,7]
[365304256,1749589832264,-201.0,0.00017717,2]
[365304257,1749589832274,-833.29909032,0.00017734,2]
[365304258,1749589832283,-300.0,0.00017751,2]
[365304259,1749589832292,-490.0,0.00017753,2]
[365304260,1749589832301,-1707.31,0.00017753,2]
[365304261,1749589832311,-205.67832872,0.000179,2]
[365304262,1749589832320,-490.0,0.00017917,2]
[365304263,1749589832330,-1707.31,0.00017917,2]
[365304264,1749589832340,-300.0,0.00017963,2]
[365304265,1749589832350,-420.0,0.00017963,2]
[365304266,1749589832359,-263.3,0.00017988,2]
[365304267,1749589832368,-707.9,0.00017988,2]
[365304268,1749589832377,-1680.0,0.00018053,2]
[365304269,1749589832386,-490.0,0.00018082,2]
[365304270,1749589832395,-1707.31,0.00018082,2]
[365304271,1749589832404,-1000.0,0.00018093,2]
[365304273,1749589832414,-465.60117386,0.000181,2]
[365304275,1749589832423,-205.67832868,0.0001815,2]
[365304277,1749589832432,-666.0,0.00018157,2]
[365304279,1749589832441,-152.0,0.0001821,3]
[365304281,1749589832451,-1000.0,0.00018218,2]
[365304283,1749589832461,-490.0,0.00018246,2]
[365304285,1749589832470,-1707.31,0.00018246,2]
[365304287,1749589832479,-170.69,0.00018261,2]
[365304289,1749589832488,-393.83,0.00018261,2]
[365304291,1749589832498,-2326.77,0.00018261,2]
[365304293,1749589832507,-1163.59,0.00018261,2]
[365304295,1749589832517,-170.69,0.00018261,2]
[365304297,1749589832526,-341.38,0.00018261,2]
[365304298,1749589832535,-1163.59,0.00018261,2]
[365304300,1749589832544,-1163.59,0.00018278,2]
[365304302,1749589832553,-1163.59,0.00018278,2]
[365304304,1749589832562,-354.51,0.00018278,2]
[365304306,1749589832571,-607.36,0.00018334,2]
[365304308,1749589832580,-169.94,0.00018351,2]
[365304310,1749589832590,-201.0,0.00018357,3]
[365304312,1749589832599,-205.67832868,0.000184,2]
[365304314,1749589832608,-490.0,0.0001841,2]
[365304316,1749589832618,-1707.31,0.0001841,2]
[365304318,1749589832627,-151.0,0.00018494,2]
[365304320,1749589832636,-207.4,0.00018494,2]
[365304322,1749589832645,-164.91,0.00018528,2]
[365304324,1749589832654,-577.95,0.00018575,2]
[365304326,1749589832664,-1707.31,0.00018575,2]
[365304328,1749589832673,-205.67832868,0.0001865,2]
[365304330,1749589832682,-500.0,0.00018733,2]
[365304332,1749589832691,-1707.31,0.00018739,2]
[365304334,1749589832701,-205.67832868,0.000189,2]
[365304336,1749589832710,-1707.31,0.00018904,2]
[365304338,1749589832719,-242.02754358,0.00018904,2]
[365304340,1749589832728,-152.0,0.00018933,4]
[365304342,1749589832737,-201.0,0.00018998,4]
[365304344,1749589832748,-1707.31,0.00019068,2]
[365304345,1749589832757,-150.0,0.00019079,2]
[365304347,1749589832766,-150.0,0.00019079,2]
[365304349,1749589832775,-150.27,0.00019079,2]
[365304351,1749589832784,-150.0,0.00019079,2]
[365304353,1749589832795,-1163.59,0.00019083,2]
[365304355,1749589832804,-1163.59,0.00019083,2]
[365304357,1749589832813,-1163.59,0.00019083,2]
[365304360,1749589832823,-659.59,0.00019083,2]
[365304362,1749589832832,-1159.0,0.0001912,2]
[365304363,1749589832842,-205.67832868,0.0001915,2]
[365304366,1749589832853,-4085.0,0.00019165,2]
[365304368,1749589832862,-883.0,0.00019165,2]
[365304370,1749589832871,-151.0,0.00019178,2]
[365304372,1749589832880,-172.89,0.00019178,2]
[365304374,1749589832889,-150.0,0.00019214,2]
[365304376,1749589832898,-150.0,0.00019214,2]
[365304377,1749589832907,-150.0,0.00019214,2]
[365304380,1749589832916,-3330.0,0.00019214,2]
[365304381,1749589832925,-945.0,0.00019214,2]
[365304383,1749589832935,-802.0,0.00019214,2]
[365304385,1749589832943,-628.42,0.00019214,2]
[365304387,1749589832952,-2000.0,0.00019214,2]
[365304390,1749589832963,-325.647,0.00019214,2]
[365304392,1749589832972,-1707.31,0.00019232,2]
[365304393,1749589832981,-1505.06886806,0.00019239,2]
[365304395,1749589832990,-2500.0,0.00019239,2]
[365304397,1749589832999,-201.6572608,0.00019288,2]
[365304400,1749589833008,-150.0,0.00019288,2]
[365304402,1749589833018,-150.0,0.00019288,2]
[365304404,1749589833027,-150.0,0.00019288,2]
[365304406,1749589833037,-201.37534164,0.00019288,2]
[365304408,1749589833047,-150.0,0.00019288,2]
[365304409,1749589833056,-150.0,0.00019288,2]
[365304411,1749589833066,-150.0,0.00019288,2]
[365304414,1749589833075,-500.0,0.00019288,2]
[365304415,1749589833085,-150.0,0.00019288,2]
[365304417,1749589833098,-150.0,0.00019288,2]
[365304419,1749589833107,-500.0,0.00019288,2]
[365304421,1749589833119,-150.0,0.00019288,2]
[365304423,1749589833129,-500.0,0.00019288,2]
[365304425,1749589833139,-150.0,0.00019288,2]
[365304427,1749589833149,-150.0,0.00019288,2]
[365304429,1749589833161,-150.0,0.00019288,2]
[365304431,1749589833171,-206.02997179,0.00019288,2]
[365304433,1749589833182,-500.0,0.00019288,2]
[365304435,1749589833191,-150.0,0.00019288,2]
[365304437,1749589833201,-500.0,0.00019288,2]
[365304439,1749589833211,-150.0,0.00019288,2]
[365304441,1749589833220,-150.55132188,0.00019288,2]
[365304443,1749589833230,-150.0,0.00019288,2]
[365304445,1749589833240,-150.0,0.00019288,2]
[365304447,1749589833250,-500.0,0.00019288,2]
[365304449,1749589833260,-1505.06886798,0.00019312,2]
[365304451,1749589833270,-235.41132204,0.00019315,2]
[365304454,1749589833281,-215.44350681,0.00019315,2]
[365304456,1749589833290,-150.0,0.00019315,2]
[365304457,1749589833300,-150.0,0.00019315,2]
[365304459,1749589833309,-150.0,0.00019315,2]
[365304461,1749589833319,-500.0,0.00019315,2]
[365304463,1749589833328,-150.0,0.00019315,2]
[365304465,1749589833338,-150.0,0.00019315,2]
[365304467,1749589833348,-500.0,0.00019315,2]
[365304469,1749589833359,-150.0,0.00019315,2]
[365304472,1749589833368,-500.0,0.00019315,2]
[365304473,1749589833377,-150.0,0.00019315,2]
[365304475,1749589833387,-150.0,0.00019315,2]
[365304477,1749589833396,-150.0,0.00019315,2]
[365304479,1749589833406,-500.0,0.00019315,2]
[365304481,1749589833415,-500.0,0.00019315,2]
[365304483,1749589833424,-150.0,0.00019315,2]
[365304485,1749589833435,-500.0,0.00019315,2]
[365304487,1749589833444,-11996.90157086,0.00019339,2]
[365304490,1749589833463,-1309.50698718,0.00019339,2]
[365304492,1749589833475,-16693.58144196,0.00019339,2]
[365304494,1749589833485,-5024.36765352,0.00019339,2]
[365304497,1749589833497,-9080.74977481,0.00019339,2]
[365304499,1749589833513,-1900.25157894,0.00019339,2]
[365304501,1749589833524,-300.0,0.00019339,2]
[365304504,1749589833536,-3694.62099273,0.00019339,2]
[365304506,1749589833545,-19940.51059149,0.00019339,2]
[365304508,1749589833557,-441.681,0.00019339,2]
[365304510,1749589833568,-5406.77070804,0.00019339,2]
[365304512,1749589833579,-574.74547957,0.00019339,2]
[365304514,1749589833592,-3636.2822209,0.00019339,2]
[365304517,1749589833602,-150.0,0.00019343,2]
[365304519,1749589833611,-150.0,0.00019343,2]
[365304521,1749589833620,-150.0,0.00019343,2]
[365304523,1749589833630,-500.0,0.00019343,2]
[365304525,1749589833640,-150.0,0.00019343,2]
[365304527,1749589833649,-150.0,0.00019343,2]
[365304529,1749589833659,-500.0,0.00019343,2]
[365304531,1749589833668,-150.0,0.00019343,2]
[365304532,1749589833677,-500.0,0.00019343,2]
[365304534,1749589833687,-150.0,0.00019343,2]
[365304537,1749589833696,-150.0,0.00019343,2]
[365304539,1749589833706,-500.0,0.00019343,2]
[365304540,1749589833715,-450.0,0.00019343,2]
[365304542,1749589833725,-150.0,0.00019343,2]
[365304544,1749589833734,-500.0,0.00019343,2]
[365304546,1749589833744,-403.13108284,0.00019343,2]
[365304548,1749589833756,-500.0,0.0001937,2]
[365304550,1749589833766,-327.0,0.0001937,2]
[365304552,1749589833775,-1505.06886798,0.00019386,2]
[365304554,1749589833785,-1707.31,0.00019397,2]
[365304556,1749589833795,-500.0,0.00019398,2]
[365304558,1749589833804,-205.67832868,0.000194,2]
[365304561,1749589833813,-461.25,0.00019451,2]
[365304563,1749589833823,-1505.06886798,0.00019459,2]
[365304564,1749589833833,-901.656225,0.00019479,2]
[365304567,1749589833845,-250.0,0.00019525,2]
[365304591,1749589834069,-300.0,0.00019525,2]
[365304593,1749589834081,-1505.06886798,0.00019533,2]
[365304595,1749589834091,-1707.31,0.00019561,2]
[365304597,1749589834101,-178.38140652,0.000196,2]
[365304599,1749589834110,-1505.06886798,0.00019606,2]
[365304601,1749589834120,-587.0,0.00019631,2]
[365304603,1749589834130,-201.0,0.00019639,5]
[365304605,1749589834140,-1000.0,0.0001964,2]
[365304607,1749589834150,-178.38140649,0.00019645,2]
[365304610,1749589834160,-205.67832868,0.0001965,2]
[365304612,1749589834171,-152.0,0.00019657,5]
[365304614,1749589834180,-1505.06886798,0.0001968,2]
[365304616,1749589834190,-178.38140649,0.0001969,2]
[365304618,1749589834200,-670.212,0.000197,2]
[365304620,1749589834209,-171.53520265,0.000197,2]
[365304622,1749589834218,-1707.31,0.00019726,2]
[365304624,1749589834228,-156.587,0.00019726,2]
[365304626,1749589834237,-1000.0,0.00019728,2]
[365304628,1749589834249,-178.38140649,0.00019734,2]
[365304630,1749589834261,-1505.06886798,0.00019753,2]
[365304632,1749589834271,-1148.89124099,0.00019776,2]
[365304633,1749589834281,-5000.0,0.00019777,2]
[365304635,1749589834290,-1379.1468,0.00019777,2]
[365304637,1749589834300,-178.38140649,0.00019779,2]
[365304639,1749589834309,-193.38573243,0.00019779,2]
[365304641,1749589834318,-1148.89124096,0.0001979,2]
[365304643,1749589834327,-9379.73,0.0001979,2]
[365304645,1749589834336,-9524.82288319,0.000198,2]
[365304647,1749589834349,-416.24329503,0.000198,2]
[365304650,1749589834361,-449.32685517,0.000198,2]
[365304819,1749589837459,-853.0,0.00019165,2]
[365304821,1749589837469,-500.0,0.00019212,2]
[365304823,1749589837478,-500.0,0.00019212,2]
[365304825,1749589837488,-248.62474071,0.00019212,2]
[365304827,1749589837499,-251.37525929,0.00019212,2]
[365304829,1749589837510,-151.67229805,0.00019212,2]
[365304831,1749589837519,-500.0,0.00019212,2]
[365304833,1749589837528,-500.0,0.00019212,2]
[365304835,1749589837537,-500.0,0.00019212,2]
[365304837,1749589837546,-500.0,0.00019212,2]
[365304839,1749589837555,-500.0,0.00019212,2]
[365304841,1749589837565,-500.0,0.00019212,2]
[365304843,1749589837574,-500.0,0.00019212,2]
[365304845,1749589837584,-500.0,0.00019212,2]
[365304847,1749589837594,-436.98902457,0.00019212,2]
[365304849,1749589837604,-500.0,0.00019212,2]
[365304851,1749589837614,-312.27183285,0.00019212,2]
[365304853,1749589837623,-500.0,0.00019212,2]
[365304855,1749589837632,-500.0,0.00019212,2]
[365304857,1749589837641,-500.0,0.00019212,2]
[365304859,1749589837651,-500.0,0.00019212,2]
[365304861,1749589837660,-500.0,0.00019212,2]
[365304863,1749589837670,-500.0,0.00019212,2]
[365304865,1749589837679,-500.0,0.00019212,2]
[365304867,1749589837689,-500.0,0.00019212,2]
[365304869,1749589837699,-596.10393234,0.00019212,2]
[365304871,1749589837708,-587.01924353,0.00019212,2]
[365304873,1749589837718,-500.0,0.00019212,2]
[365304875,1749589837728,-460.38262218,0.00019212,2]
[365304877,1749589837737,-5000.0,0.00019777,2]
[365304879,1749589837748,-376.96700702,0.000198,2]
[365304881,1749589837761,-423.74673554,0.000198,2]
[365304885,1749589837773,-51348.65871418,0.000198,2]
[365304889,1749589837784,-11933.04203779,0.000198,2]
[365304892,1749589837795,-1000.0,0.000198,2]
[365304895,1749589837804,-1148.89124096,0.00019804,2]
[365304898,1749589837814,-1148.89124096,0.00019817,2]
[365304901,1749589837825,-1505.06886798,0.00019827,2]
[365304904,1749589837835,-2351.0,0.00019828,2]
[365304907,1749589837845,-1148.89124096,0.00019831,2]
[365304910,1749589837854,-1000.0,0.00019844,2]
[365304913,1749589837864,-1148.89124096,0.00019845,2]
[365304916,1749589837874,-1148.89124096,0.00019859,2]
[365304919,1749589837883,-156.587,0.00019863,2]
[365304921,1749589837893,-215.0738,0.00019863,2]
[365304923,1749589837902,-158.56,0.00019867,2]
[365304925,1749589837912,-9379.73,0.00019867,2]
[365304927,1749589837921,-1036.98202453,0.00019872,2]
[365304929,1749589837934,-111.90921643,0.00019872,2]
[365304931,1749589837943,-154.94869665,0.00019876,2]
[365305089,1749589839531,-66.45696392,0.00019876,2]
[365305091,1749589839540,-1000.0,0.00019876,2]
[365305093,1749589839550,-1000.0,0.00019876,2]
[365305095,1749589839559,-1000.0,0.00019876,2]
[365305097,1749589839568,-106701.33827247,0.00019877,2]
[365305112,1749589839698,-155.0,0.00019165,2]
[365305114,1749589839708,-476182.05421831,0.00019877,2]
[365305116,1749589839717,-151.0,0.00019877,2]
[365305118,1749589839726,-151.0,0.00019877,2]
[365305120,1749589839736,-151.0,0.00019877,2]
[365305122,1749589839745,-151.0,0.00019877,2]
[365305124,1749589839759,-151.0,0.00019877,2]
[365305126,1749589839768,-151.0,0.00019877,2]
[365305128,1749589839776,-151.0,0.00019877,2]
[365305130,1749589839787,-151.0,0.00019877,2]
[365305132,1749589839795,-151.0,0.00019877,2]
[365305134,1749589839808,-151.0,0.00019877,2]
[365305136,1749589839817,-152.441688,0.00019877,2]
[365305138,1749589839826,-152.441688,0.00019877,2]
[365305140,1749589839836,-152.441688,0.00019877,2]
[365305142,1749589839845,-152.441688,0.00019877,2]
[365305144,1749589839855,-151.0,0.00019877,2]
[365305146,1749589839864,-151.0,0.00019877,2]
[365305148,1749589839873,-151.0,0.00019877,2]
[365305150,1749589839882,-151.0,0.00019877,2]
[365305152,1749589839891,-151.0,0.00019877,2]
[365305154,1749589839900,-151.0,0.00019877,2]
[365305156,1749589839909,-151.0,0.00019877,2]
[365305158,1749589839918,-151.0,0.00019877,2]
[365305160,1749589839928,-151.0,0.00019877,2]
[365305162,1749589839938,-151.0,0.00019877,2]
[365305164,1749589839947,-151.0,0.00019877,2]
[365305166,1749589839957,-151.0,0.00019877,2]
[365305168,1749589839965,-151.0,0.00019877,2]
[365305170,1749589839974,-151.0,0.00019877,2]
[365305172,1749589839984,-151.0,0.00019877,2]
[365305174,1749589839992,-151.0,0.00019877,2]
[365305176,1749589840002,-151.0,0.00019877,2]
[365305178,1749589840011,-151.0,0.00019877,2]
[365305180,1749589840020,-151.0,0.00019877,2]
[365305182,1749589840030,-151.0,0.00019877,2]
[365305184,1749589840040,-151.0,0.00019877,2]
[365305186,1749589840049,-151.0,0.00019877,2]
[365305188,1749589840058,-334.20929,0.00019877,2]
[365305190,1749589840067,-334.20929,0.00019877,2]
[365305192,1749589840077,-334.20929,0.00019877,2]
[365305194,1749589840086,-334.20929,0.00019877,2]
[365305196,1749589840095,-151.0,0.00019877,2]
[365305198,1749589840106,-151.0,0.00019877,2]
[365305200,1749589840115,-151.0,0.00019877,2]
[365305202,1749589840125,-151.0,0.00019877,2]
[365305204,1749589840135,-151.0,0.00019877,2]
[365305206,1749589840145,-151.0,0.00019877,2]
[365305208,1749589840157,-151.0,0.00019877,2]
[365305210,1749589840166,-151.0,0.00019877,2]
[365305212,1749589840176,-151.0,0.00019877,2]
[365305214,1749589840185,-151.0,0.00019877,2]
[365305216,1749589840194,-151.0,0.00019877,2]
[365305218,1749589840204,-151.0,0.00019877,2]
[365305220,1749589840214,-151.0,0.00019877,2]
[365305222,1749589840223,-151.0,0.00019877,2]
[365305224,1749589840233,-151.0,0.00019877,2]
[365305226,1749589840243,-151.0,0.00019877,2]
[365305228,1749589840253,-151.0,0.00019877,2]
[365305230,1749589840263,-151.0,0.00019877,2]
[365305232,1749589840273,-151.0,0.00019877,2]
[365305234,1749589840283,-151.0,0.00019877,2]
[365305236,1749589840292,-151.0,0.00019877,2]
[365305239,1749589840302,-151.0,0.00019877,2]
[365305242,1749589840312,-233.271844,0.00019877,2]
[365305244,1749589840321,-335.510886,0.00019877,2]
[365305246,1749589840331,-335.510886,0.00019877,2]
[365305248,1749589840340,-335.510886,0.00019877,2]
[365305250,1749589840350,-335.510886,0.00019877,2]
[365305252,1749589840359,-151.0,0.00019877,2]
[365305254,1749589840369,-153.380015,0.00019877,2]
[365305256,1749589840378,-151.0,0.00019877,2]
[365305258,1749589840388,-153.868706,0.00019877,2]
[365305260,1749589840397,-151.0,0.00019877,2]
[365305263,1749589840406,-151.0,0.00019877,2]
[365305265,1749589840415,-151.0,0.00019877,2]
[365305267,1749589840424,-151.0,0.00019877,2]
[365305269,1749589840433,-151.0,0.00019877,2]
[365305270,1749589840442,-151.0,0.00019877,2]
[365305272,1749589840450,-151.0,0.00019877,2]
[365305274,1749589840460,-151.0,0.00019877,2]
[365305276,1749589840469,-151.0,0.00019877,2]
[365305278,1749589840478,-180.744802,0.00019877,2]
[365305280,1749589840487,-151.0,0.00019877,2]
[365305283,1749589840496,-151.0,0.00019877,2]
[365305285,1749589840505,-151.0,0.00019877,2]
[365305286,1749589840515,-151.0,0.00019877,2]
[365305288,1749589840524,-151.0,0.00019877,2]
[365305290,1749589840533,-151.0,0.00019877,2]
[365305292,1749589840541,-155.755487,0.00019877,2]
[365305294,1749589840551,-155.755487,0.00019877,2]
[365305296,1749589840559,-155.755487,0.00019877,2]
[365305298,1749589840568,-155.755487,0.00019877,2]
[365305300,1749589840577,-155.755487,0.00019877,2]
[365305302,1749589840587,-155.755487,0.00019877,2]
[365305304,1749589840595,-200.0,0.00019877,2]
[365305306,1749589840606,-150.0,0.00019877,2]
[365305308,1749589840615,-151.0,0.00019877,2]
[365305310,1749589840624,-450.31,0.00019878,2]
[365305312,1749589840633,-29684.00973418,0.00019878,3]
[365305314,1749589840642,-604.0,0.00019879,2]
[365305316,1749589840652,-73846.78321418,0.00019879,3]
[365305319,1749589840665,-2405.65456851,0.00019879,3]
[365305321,1749589840676,-909.51999924,0.00019879,3]
[365305323,1749589840687,-10129.17632774,0.00019879,3]
[365305508,1749589842476,-480.0,0.00016438,2]
[365305510,1749589842486,-200.0,0.00017076,2]
[365305512,1749589842495,-11517.67,0.00019879,3]
[365305571,1749589843151,-5782.73368576,0.00019879,3]
[365305573,1749589843163,-1380.05,0.00019879,3]
[365305804,1749589845443,-480.0,0.00016438,2]
[365305806,1749589845453,-505.05,0.00019777,2]
[365305808,1749589845463,-5651.08353069,0.00019879,3]
[365305819,1749589845555,-109867.85307877,0.00019879,3]
[365305826,1749589845612,-3359.32862972,0.00019879,3]
[365305828,1749589845623,-2833.35663351,0.00019879,3]
[365305983,1749589965535,162.7,0.00019205,30]
[365305987,1749590083594,150.0,0.00016,5]
[365305996,1749590386684,-1951.6237,0.00016064,2]
[365305997,1749590386707,-571.53,0.00016142,2]
[365305998,1749590386729,-500.0,0.00016164,2]
[365305999,1749590386752,-461.52509598,0.00016164,2]
[365306000,1749590386775,-1200.0,0.00016437,2]
[365306001,1749590386797,-550.0,0.00016437,2]
[365306002,1749590386820,-300.0,0.00016437,2]
[365306003,1749590386842,-317.04,0.00016438,2]
[365306004,1749590386866,-500.0,0.00016438,2]
[365306005,1749590386888,-500.0,0.00016438,2]
[365306006,1749590386911,-500.0,0.00016438,2]
[365306007,1749590386938,-480.0,0.00016438,2]
[365306008,1749590386962,-295.96854293,0.00016438,2]
[365306009,1749590386984,-490.0,0.00016438,2]
[365306010,1749590387009,-427.32901779,0.00016438,2]
[365306011,1749590387032,-228.44,0.00016438,2]
[365306012,1749590387055,-480.0,0.00016438,2]
[365306013,1749590387081,-485.35884164,0.00016438,2]
[365306014,1749590387106,-490.0,0.00016438,2]
[365306015,1749590387129,-490.0,0.00016438,2]
[365306016,1749590387152,-490.0,0.00016438,2]
[365306017,1749590387179,-490.0,0.00016438,2]
[365306018,1749590387204,-481.27115681,0.00016438,2]
[365306019,1749590387228,-490.0,0.00016438,2]
[365306020,1749590387251,-460.0,0.00016438,2]
[365306021,1749590387272,-490.0,0.00016438,2]
[365306022,1749590387295,-313.29492698,0.00016438,2]